bitfinex/quotes_ETHUSD_20260120
["timestamp","ask_amount","ask_price","bid_price","bid_amount"]
[1768878639015,0.93197481,3184.3,3183.6,0.516]
[1768878640735,0.93197481,3184.3,3183.5,0.82172603]
[1768878640954,0.93197481,3184.2,3183.5,1.33772603]
[1768878641632,0.93197481,3184.2,3183.5,4.47892253]
[1768878641806,0.93197481,3184.2,3183.6,3.14107003]
[1768878642235,0.93197481,3184.2,3183.4,0.93744911]
[1768878642607,0.93197481,3184.2,3183.5,0.93744911]
[1768878642808,0.93197481,3184.2,3183.6,0.93744911]
[1768878643030,0.91009473,3184.5,3183.6,0.93744911]
[1768878643335,0.91009473,3184.5,3183.8,0.93744911]
[1768878644032,0.91009473,3184.5,3183.9,0.93744911]
[1768878644208,3.14012013,3184.6,3183.9,0.93744911]
[1768878644409,3.91073564,3184.6,3183.9,0.93744911]
[1768878644641,4.82083037,3184.6,3183.9,0.93744911]
[1768878645260,4.82083881,3184.6,3183.9,0.93744911]
[1768878645634,4.82083881,3184.6,3183.5,3.54903501]
[1768878645635,0.91009473,3184.5,3183.5,3.54903501]
[1768878645944,0.91009473,3184.4,3183.6,0.516]
[1768878646138,0.91009473,3184.4,3183.6,1.45344911]
[1768878646468,0.91009473,3184.2,3183.6,0.516]
[1768878647025,0.91009473,3183.9,3183.0,0.93944911]
[1768878647768,0.91009473,3183.9,3183.0,0.518]
[1768878647969,0.91009473,3183.8,3183.0,0.518]
[1768878649171,0.91009473,3183.8,3183.1,0.93744911]
[1768878650158,0.91009473,3184.0,3183.1,0.93744911]
[1768878650679,0.91009473,3184.1,3183.2,1.45344911]
[1768878651014,0.91009473,3184.1,3183.4,0.93744911]
[1768878652827,0.91009473,3184.1,3183.5,0.93744911]
[1768878654256,0.001,3184.3,3183.5,0.93744911]
[1768878654973,0.001,3184.3,3183.5,3.14114679]
[1768878655263,0.91495143,3184.3,3183.7,0.91842946]
[1768878655646,0.91495143,3184.3,3183.4,4.05971572]
[1768878656281,0.91495143,3184.3,3183.5,0.91842946]
[1768878656882,0.91495143,3184.3,3183.5,4.05962514]
[1768878657472,0.91495143,3184.3,3183.6,0.91842946]
[1768878657778,0.91395143,3184.2,3183.6,0.91842946]
[1768878658887,0.001,3184.0,3183.6,0.91842946]
[1768878659559,0.001,3184.0,3183.7,0.91842946]
[1768878659766,0.91395143,3185.0,3183.9,0.91842946]
[1768878659961,0.91395143,3185.0,3183.6,6.28216179]
[1768878659962,0.91395143,3185.0,3184.1,0.91842946]
[1768878660888,0.91395143,3185.0,3184.0,0.517]
[1768878661085,0.91395143,3184.8,3183.9,0.517]
[1768878661290,0.91395143,3184.6,3183.9,0.517]
[1768878663699,0.91395143,3184.6,3183.8,0.91842946]
[1768878663997,0.91395143,3184.6,3183.8,4.57631682]
[1768878665093,0.91395143,3184.6,3183.8,1.43542946]
[1768878665496,0.91395143,3184.6,3183.8,4.57630405]
[1768878665662,0.91395143,3184.6,3183.9,4.05922255]
[1768878667208,0.91395143,3184.6,3184.0,0.91842946]
[1768878667411,0.91395143,3184.9,3184.0,0.91842946]
[1768878668409,0.91395143,3184.9,3184.1,0.91842946]
[1768878668601,0.91395143,3184.7,3184.0,0.516]
[1768878668801,0.91395143,3184.6,3184.0,0.516]
[1768878669404,0.91395143,3184.6,3183.8,4.83103336]
[1768878669709,0.91395143,3184.6,3183.9,4.0592081]
[1768878669912,0.91395143,3184.5,3183.8,0.77173802]
[1768878670294,0.91395143,3184.5,3183.8,1.69016748]
[1768878670479,0.91395143,3184.5,3183.8,4.83106731]
[1768878671389,0.91395143,3184.5,3184.3,0.002]
[1768878672675,0.9384361,3184.5,3184.0,0.002]
[1768878672880,0.91395143,3184.4,3184.0,0.002]
[1768878673683,0.91495143,3184.6,3184.0,0.92042946]
[1768878675115,0.91495143,3184.6,3184.1,0.91842946]
[1768878675717,0.001,3184.6,3184.1,0.91842946]
[1768878675918,0.91395143,3185.2,3184.3,0.91842946]
[1768878676320,0.91395143,3185.0,3184.1,0.40611135]
[1768878677027,0.91395143,3185.0,3184.2,0.91842946]
[1768878677321,0.91395143,3184.9,3184.2,0.91842946]
[1768878678111,0.91395143,3185.1,3184.2,0.91842946]
[1768878679107,0.91395143,3185.1,3184.4,0.91842946]
[1768878680325,0.91395143,3185.2,3184.4,0.516]
[1768878680513,0.516,3185.3,3184.5,0.91842946]
[1768878680690,1.29299514,3185.3,3184.5,0.91842946]
[1768878680895,1.29299514,3185.3,3184.4,0.516]
[1768878680896,0.91395143,3185.2,3184.4,0.516]
[1768878681103,0.91395143,3185.2,3184.5,0.91842946]
[1768878683647,2.25703179,3185.3,3184.6,0.9895804]
[1768878684747,2.25703179,3185.3,3184.1,0.9895804]
[1768878684748,0.96403665,3184.8,3184.1,0.9895804]
[1768878684953,0.96403665,3184.8,3184.5,0.9895804]
[1768878685943,0.96503665,3184.9,3184.5,0.9895804]
[1768878686312,0.96503665,3184.9,3184.3,0.9895804]
[1768878687210,0.001,3184.9,3184.5,3.14016128]
[1768878687413,0.001,3184.9,3184.6,0.9895804]
[1768878687944,0.001,3184.9,3184.7,0.9895804]
[1768878688661,3.13913772,3185.6,3184.8,0.9895804]
[1768878688662,0.96403665,3185.6,3184.8,0.9895804]
[1768878689261,1.48003665,3185.8,3184.9,0.9895804]
[1768878689462,0.96403665,3185.7,3184.9,0.9895804]
[1768878689858,0.96403665,3185.7,3185.0,0.9895804]
[1768878692264,0.96403665,3185.6,3185.0,0.9895804]
[1768878693855,0.46189365,3185.7,3185.1,0.9895804]
[1768878694055,1.48003665,3185.8,3185.1,0.9895804]
[1768878694354,0.516,3185.8,3185.2,0.9895804]
[1768878694558,0.96403665,3185.7,3185.0,0.9895804]
[1768878694873,0.96403665,3185.7,3185.1,0.9895804]
[1768878695162,0.96403665,3185.7,3185.2,0.9895804]
[1768878696978,0.001,3185.3,3185.2,0.9895804]
[1768878700146,0.001,3185.3,3185.2,4.12910068]
[1768878701602,0.001,3186.0,3185.3,0.9895804]
[1768878701791,0.001,3186.0,3185.5,0.9895804]
[1768878703808,0.001,3186.0,3185.7,0.98712567]
[1768878707013,0.97955957,3186.0,3185.5,0.98712567]
[1768878707789,0.97955957,3186.0,3185.5,1.50312567]
[1768878708307,0.97955957,3186.0,3185.4,3.13928389]
[1768878708619,0.97955957,3186.0,3185.5,0.516]
[1768878708924,0.97955957,3186.0,3185.3,1.50312567]
[1768878709307,0.001,3185.7,3185.3,1.50312567]
[1768878709615,0.001,3185.7,3185.4,4.12644011]
[1768878709800,0.001,3185.7,3185.5,3.13920584]
[1768878710000,0.001,3185.7,3185.5,4.90450532]
[1768878710195,0.001,3185.7,3185.5,1.76529948]
[1768878711414,0.97955957,3185.7,3185.1,0.98712567]
[1768878711585,0.97955957,3185.7,3185.2,0.516]
[1768878714222,0.97955957,3185.7,3185.1,4.64267927]
[1768878716727,0.97955957,3185.7,3185.0,0.46453511]
[1768878717032,0.97955957,3185.7,3185.0,0.516]
[1768878717331,0.91511826,3186.0,3185.3,0.91454099]
[1768878717505,0.91511826,3186.0,3185.4,0.516]
[1768878718500,0.91511826,3186.0,3185.5,3.13922461]
[1768878719420,0.91511826,3186.0,3185.4,4.05382727]
[1768878720336,0.91511826,3186.0,3185.4,3.13928628]
[1768878720638,0.91511826,3186.0,3185.5,0.91454099]
[1768878720931,0.001,3186.0,3185.5,0.91454099]
[1768878721299,0.91411826,3186.4,3185.5,0.91454099]
[1768878722129,0.91411826,3186.4,3185.4,3.9102198]
[1768878722320,0.91411826,3186.3,3185.5,0.516]
[1768878722930,0.91411826,3186.3,3185.5,3.65520759]
[1768878723333,0.91411826,3186.3,3185.5,4.50321588]
[1768878725418,0.91411826,3186.2,3185.5,1.36400829]
[1768878725618,0.91411826,3186.2,3185.5,0.516]
[1768878726022,0.91411826,3186.2,3185.4,3.13931511]
[1768878727040,0.91411826,3186.2,3185.3,3.65537972]
[1768878727404,0.91411826,3186.1,3185.1,0.91454099]
[1768878727709,0.91411826,3185.9,3185.2,3.65551609]
[1768878730014,0.91411826,3185.9,3185.2,4.57005708]
[1768878730215,0.91411826,3185.9,3185.3,0.91454099]
[1768878730417,0.91411826,3186.2,3185.3,0.91454099]
[1768878730659,0.91411826,3186.2,3185.4,0.91454099]
[1768878731445,0.91411826,3186.2,3185.4,1.43054099]
[1768878731619,0.91411826,3186.2,3185.4,3.65530944]
[1768878732149,0.91411826,3186.2,3185.4,4.56985043]
[1768878732459,0.91411826,3186.2,3185.4,0.516]
[1768878732657,0.91411826,3186.0,3185.4,0.516]
[1768878732952,0.91411826,3186.0,3185.4,0.518]
[1768878733958,0.91411826,3186.0,3185.4,3.65728594]
[1768878734159,0.91411826,3186.0,3185.4,4.57182693]
[1768878736559,0.516,3186.3,3185.5,0.91454099]
[1768878736862,0.91411826,3186.2,3185.5,0.91454099]
[1768878737040,0.91411826,3186.2,3185.6,0.91454099]
[1768878738563,0.91411826,3186.2,3185.7,3.13902752]
[1768878738773,0.91411826,3186.2,3185.7,4.05356851]
[1768878739288,0.91411826,3186.4,3185.8,0.91454099]
[1768878739574,0.91411826,3186.4,3185.7,4.05356851]
[1768878743469,0.91411826,3186.4,3185.7,4.84994822]
[1768878745006,0.001,3186.5,3185.9,0.98662002]
[1768878745160,0.97127757,3186.5,3185.9,0.98662002]
[1768878746085,0.97127757,3186.5,3186.0,0.002]
[1768878746302,0.001,3186.1,3186.0,0.002]
[1768878748075,0.97127757,3186.1,3185.6,0.002]
[1768878748400,0.97127757,3186.1,3185.7,0.516]
[1768878749783,0.97127757,3186.1,3185.6,0.002]
[1768878749988,0.97127757,3186.1,3185.6,0.518]
[1768878751015,0.97127757,3186.1,3185.6,0.002]
[1768878751608,0.97027757,3186.0,3185.6,0.002]
[1768878753921,0.97027757,3185.7,3185.0,0.518]
[1768878754131,0.97027757,3185.7,3185.0,0.002]
[1768878755716,0.97027757,3185.6,3185.0,0.002]
[1768878755921,0.97027757,3185.4,3185.0,0.002]
[1768878756121,0.516,3185.7,3185.0,0.98862002]
[1768878756420,1.48627757,3185.7,3185.0,0.98862002]
[1768878756840,0.97027757,3185.6,3185.0,0.98862002]
[1768878757634,0.001,3186.1,3185.6,0.98662002]
[1768878757788,0.97127757,3186.1,3185.6,4.75682302]
[1768878758283,0.97127757,3186.1,3185.7,0.98662002]
[1768878758505,0.001,3186.1,3185.7,0.98662002]
[1768878759040,0.97127757,3186.1,3185.6,0.98662002]
[1768878759319,0.97127757,3186.1,3185.6,4.12572767]
[1768878760028,0.97127757,3186.1,3185.6,0.98662002]
[1768878760531,0.001,3185.8,3185.6,0.98662002]
[1768878760888,0.001,3185.8,3185.6,4.12574338]
[1768878761437,0.001,3185.8,3185.4,0.98662002]
[1768878761651,0.97127757,3185.8,3185.3,0.98862002]
[1768878762008,0.97127757,3185.8,3185.4,3.13932152]
[1768878762637,0.97127757,3185.8,3185.4,4.04719977]
[1768878762837,0.97127757,3185.8,3185.4,0.90787825]
[1768878769051,0.97127757,3185.8,3185.4,4.04718159]
[1768878769722,0.001,3185.8,3185.5,0.90787825]
[1768878771451,0.001,3185.8,3185.6,0.90787825]
[1768878775026,0.001,3185.8,3185.6,4.04698914]
[1768878775956,0.001,3185.8,3185.6,0.90787825]
[1768878776657,0.001,3185.8,3185.6,4.04698135]
[1768878777470,0.96834437,3186.1,3185.6,1.62581401]
[1768878777645,0.96834437,3186.1,3185.3,0.002]
[1768878777646,0.96834437,3186.1,3185.4,0.90718573]
[1768878778461,0.96834437,3186.1,3185.3,0.002]
[1768878778652,0.96834437,3186.1,3185.0,0.002]
[1768878778653,0.96734437,3186.0,3185.0,0.002]
[1768878779553,3.13883047,3185.9,3185.0,0.002]
[1768878779752,0.96734437,3185.7,3185.0,0.002]
[1768878781564,0.96734437,3185.5,3185.0,0.002]
[1768878783976,0.96734437,3185.5,3185.3,0.002]
[1768878784277,0.96834437,3185.5,3185.3,0.002]
[1768878784771,0.96734437,3185.4,3184.5,4.04734193]
[1768878784968,0.96734437,3185.2,3184.6,3.14010172]
[1768878785274,0.96734437,3185.2,3184.7,3.14001053]
[1768878785867,0.516,3185.3,3184.7,0.90718573]
[1768878787479,0.001,3185.5,3184.9,0.90718573]
[1768878787991,0.516,3186.0,3184.9,0.90718573]
[1768878788143,1.48334437,3186.0,3185.1,0.90718573]
[1768878788655,0.96734437,3185.9,3185.1,0.90718573]
[1768878789288,0.96734437,3185.9,3184.9,0.90718573]
[1768878789451,0.96734437,3185.9,3185.0,0.71870149]
[1768878789651,0.96734437,3185.9,3185.1,4.04680458]
[1768878790784,0.96734437,3185.9,3185.2,0.90718573]
[1768878791866,0.96734437,3185.9,3185.0,1.62588722]
[1768878792394,0.96734437,3185.8,3184.9,3.13977867]
[1768878792792,0.96734437,3185.8,3185.0,4.04687648]
[1768878792993,0.96734437,3185.8,3185.1,4.04680003]
[1768878793171,0.516,3185.9,3185.3,0.90718573]
[1768878793367,0.96734437,3185.8,3185.3,0.90718573]
[1768878796003,0.96734437,3185.8,3185.3,4.04660201]
[1768878796192,0.96734437,3185.8,3185.3,4.76522397]
[1768878796392,0.516,3185.9,3185.3,3.85803824]
[1768878796594,0.001,3185.5,3185.4,0.90718573]
[1768878797303,0.001,3185.5,3185.3,1.62580769]
[1768878797496,0.001,3185.5,3185.3,0.90718573]
[1768878798802,0.001,3185.5,3185.4,0.90718573]
[1768878799100,0.516,3186.0,3185.4,0.90718573]
[1768878800402,1.48334437,3186.0,3185.4,0.90718573]
[1768878801194,0.96734437,3185.9,3185.4,0.90718573]
[1768878801789,0.96734437,3185.9,3185.4,4.04648706]
[1768878802121,0.96734437,3185.9,3185.5,0.90718573]
[1768878804620,0.96910708,3186.1,3185.6,0.95036605]
[1768878804824,0.516,3186.0,3185.6,0.95036605]
[1768878805711,0.001,3186.1,3185.6,0.95036605]
[1768878805907,0.001,3186.1,3185.7,0.95036605]
[1768878806713,0.001,3186.1,3185.9,0.95036605]
[1768878807131,0.516,3186.3,3185.9,0.95036605]
[1768878807507,0.001,3186.5,3185.9,0.95036605]
[1768878808734,0.001,3186.5,3186.0,0.95036605]
[1768878809315,0.001,3186.5,3186.1,0.95036605]
[1768878812509,0.001,3186.5,3186.2,0.95036605]
[1768878812741,0.96910708,3186.5,3186.0,0.72280402]
[1768878812950,0.96910708,3186.5,3185.8,3.13883235]
[1768878813248,0.96910708,3186.5,3185.8,4.0891984]
[1768878813444,0.96910708,3186.5,3185.8,3.13883235]
[1768878813624,0.96910708,3186.5,3185.9,0.95036605]
[1768878813824,0.96910708,3186.5,3185.9,1.67318685]
[1768878816768,0.96910708,3186.5,3185.9,4.81200116]
[1768878817052,0.96910708,3186.5,3185.9,3.86163511]
[1768878817261,0.96910708,3186.5,3186.0,0.95036605]
[1768878818778,0.001,3186.8,3185.9,3.86163511]
[1768878818779,0.001,3186.8,3186.2,0.95036605]
[1768878819090,0.001,3186.8,3185.5,0.95036605]
[1768878819091,0.96910708,3186.8,3185.5,0.95036605]
[1768878819366,0.96810708,3186.6,3185.6,3.13909855]
[1768878819530,0.96810708,3186.6,3185.6,4.0894646]
[1768878819865,0.96810708,3186.6,3185.7,4.0893284]
[1768878820221,0.96810708,3186.6,3185.8,4.08929391]
[1768878821781,0.001,3186.2,3185.8,4.08929391]
[1768878823074,0.9215499,3186.2,3185.8,4.08929391]
[1768878829474,0.9215499,3186.2,3185.8,0.95036605]
[1768878829984,0.9215499,3186.2,3185.7,3.13898226]
[1768878830187,0.9215499,3186.2,3185.7,4.08590128]
[1768878830677,0.9215499,3186.2,3185.7,4.93745944]
[1768878833097,0.9215499,3186.2,3185.8,0.90851636]
[1768878833396,0.001,3186.2,3185.8,0.90851636]
[1768878833700,0.516,3186.5,3186.1,0.91051636]
[1768878836498,0.516,3186.5,3186.1,0.002]
[1768878836499,0.94647674,3186.4,3186.1,0.002]
[1768878844814,0.001,3186.8,3186.2,0.90851636]
[1768878844989,0.94647674,3186.6,3186.1,0.002]
[1768878847591,0.94647674,3186.6,3186.1,0.0036656]
[1768878848513,0.94647674,3186.6,3186.1,0.91218196]
[1768878849014,0.516,3186.7,3186.1,0.91218196]
[1768878849318,1.46247674,3186.7,3186.1,0.91218196]
[1768878850088,0.516,3186.6,3186.1,0.91218196]
[1768878851692,1.46247674,3186.6,3186.1,4.05079213]
[1768878851891,1.46247674,3186.6,3186.1,4.76995198]
[1768878852625,0.94647674,3186.5,3186.1,4.76995198]
[1768878853131,0.94647674,3186.5,3186.1,1.63134181]
[1768878853615,0.94647674,3186.5,3186.1,0.72282545]
[1768878854625,0.94647674,3186.5,3186.0,0.002]
[1768878856798,0.94647674,3186.5,3186.0,0.91051636]
[1768878857635,0.94647674,3186.5,3186.0,4.04921199]
[1768878858341,1.46247674,3186.5,3186.1,0.90851636]
[1768878859234,0.94647674,3186.7,3186.1,0.90851636]
[1768878859439,0.516,3186.5,3186.1,0.90851636]
[1768878859635,0.516,3186.5,3186.1,4.0471297]
[1768878860136,0.001,3186.3,3186.1,4.0471297]
[1768878861826,0.001,3186.3,3186.0,0.91051636]
[1768878865012,0.99256409,3186.3,3186.0,0.002]
[1768878865701,0.001,3186.3,3186.0,0.002]
[1768878866841,0.001,3186.3,3186.0,3.14070935]
[1768878867621,0.001,3186.3,3186.0,3.13890135]
[1768878867808,0.001,3186.3,3186.0,4.13599848]
[1768878868006,0.001,3186.3,3186.1,0.99709713]
[1768878869943,0.001,3186.3,3186.1,4.13570514]
[1768878872745,0.001,3186.3,3186.1,0.99709713]
[1768878875647,0.001,3186.3,3186.0,0.000192]
[1768878880593,0.001,3186.3,3186.0,0.99728913]
[1768878880788,0.99256409,3186.8,3186.1,0.99709713]
[1768878882520,0.99256409,3186.8,3186.2,0.91735965]
[1768878883029,0.001,3186.5,3186.2,0.91735965]
[1768878884724,0.001,3186.5,3186.2,4.05586901]
[1768878885082,0.98937547,3186.5,3186.3,0.4055869]
[1768878885283,0.98937547,3186.5,3186.0,4.05623116]
[1768878886093,0.98937547,3186.5,3186.1,4.05599059]
[1768878888611,0.001,3186.5,3186.1,4.05599059]
[1768878891087,0.001,3186.5,3186.2,0.91735965]
[1768878897131,0.001,3186.5,3186.2,4.05586994]
[1768878899734,0.001,3186.5,3186.3,0.9724558]
[1768878900752,0.001,3186.5,3186.0,0.000192]
[1768878901553,0.90877267,3186.5,3186.0,0.000192]
[1768878901739,0.90877267,3186.5,3186.0,4.11137975]
[1768878901939,0.90877267,3186.5,3186.0,0.9726478]
[1768878902238,0.90877267,3186.5,3186.0,0.000192]
[1768878906246,0.90877267,3186.5,3186.0,1.69788441]
[1768878906839,0.90877267,3186.5,3186.1,4.11108923]
[1768878907632,0.001,3186.5,3186.1,4.11108923]
[1768878907854,0.001,3186.5,3186.3,0.002]
[1768878918568,0.001,3186.5,3186.3,0.9744558]
[1768878918773,0.517,3186.8,3186.4,1.69760674]
[1768878918991,0.517,3186.8,3186.4,0.9724558]
[1768878919434,1.42477267,3186.8,3186.4,0.9724558]
[1768878920267,1.42477267,3186.8,3186.3,0.9744558]
[1768878920468,0.90877267,3186.8,3186.3,0.9744558]
[1768878920937,0.001,3186.5,3186.3,0.9744558]
[1768878921136,0.001,3186.5,3186.4,0.41129488]
[1768878922965,0.90877267,3186.8,3186.4,0.41129488]
[1768878925472,0.90877267,3186.8,3186.4,3.54957132]
[1768878925640,0.90877267,3186.8,3186.4,0.41129488]
[1768878926142,0.001,3187.1,3186.6,0.95174637]
[1768878927749,0.001,3187.1,3186.7,4.08978885]
[1768878928068,0.001,3187.1,3186.8,0.95174637]
[1768878929131,0.001,3187.1,3186.7,0.95174637]
[1768878929866,0.97869856,3187.1,3186.7,3.13804239]
[1768878930166,0.97869856,3187.1,3186.7,0.45422052]
[1768878931164,0.97869856,3187.1,3186.7,3.59224467]
[1768878931590,0.97869856,3187.1,3186.7,4.54399104]
[1768878931745,0.001,3187.4,3187.0,0.95174637]
[1768878931947,0.001,3187.4,3187.1,1.28022208]
[1768878932258,0.001,3187.4,3186.9,0.95174637]
[1768878932461,0.97869856,3187.4,3186.9,0.95174637]
[1768878933779,0.97869856,3187.4,3186.9,4.08954446]
[1768878936790,0.001,3187.4,3187.0,0.95174637]
[1768878937766,0.001,3187.4,3187.1,4.08939501]
[1768878937971,0.001,3187.4,3187.1,4.81211432]
[1768878938483,0.001,3187.4,3187.1,1.67446568]
[1768878939881,0.001,3187.4,3187.1,4.81204559]
[1768878940062,0.001,3187.4,3187.1,1.67446568]
[1768878940479,0.001,3187.4,3187.1,0.95174637]
[1768878941089,0.001,3187.4,3187.1,4.08934778]
[1768878941290,0.001,3187.4,3187.2,0.95174637]
[1768878942279,0.001,3187.4,3187.2,4.0892766]
[1768878943110,0.99553866,3187.9,3187.3,0.93034951]
[1768878943404,0.99553866,3187.9,3187.4,1.33713748]
[1768878944910,0.99553866,3187.9,3187.4,4.47447343]
[1768878946145,0.99553866,3188.3,3187.5,0.93034951]
[1768878946332,0.99553866,3188.2,3187.5,3.13720489]
[1768878946537,0.99553866,3188.2,3187.6,0.93034951]
[1768878950831,0.99553866,3188.2,3187.5,0.64692435]
[1768878951529,0.99553866,3188.2,3187.3,3.13737924]
[1768878951719,0.99553866,3188.1,3187.3,3.13737924]
[1768878954549,0.99553866,3188.1,3186.7,7.39220744]
[1768878954550,5.32101697,3187.9,3187.0,0.93300705]
[1768878954759,0.90911162,3187.7,3186.9,3.13779805]
[1768878955063,0.90911162,3187.7,3186.9,4.3357024]
[1768878957321,0.90911162,3187.7,3186.9,1.19790435]
[1768878957821,0.90911162,3187.7,3186.8,4.07091969]
[1768878960458,0.90911162,3187.7,3186.9,3.13779701]
[1768878960772,0.90911162,3187.7,3186.8,4.07090692]
[1768878961056,0.90911162,3187.6,3186.9,0.93300705]
[1768878961360,0.90911162,3187.6,3186.8,0.93300705]
[1768878961558,0.90911162,3187.6,3186.9,0.50412494]
[1768878962727,0.90911162,3187.4,3186.6,0.93300705]
[1768878962927,0.90911162,3187.2,3186.4,0.93300705]
[1768878963154,0.90911162,3187.2,3186.4,3.1383169]
[1768878963427,0.516,3187.3,3186.8,0.93300705]
[1768878963858,1.42511162,3187.3,3186.8,0.93300705]
[1768878966544,1.42511162,3187.3,3186.8,1.34010652]
[1768878967366,1.42511162,3187.3,3187.1,0.002]
[1768878970368,0.90911162,3187.6,3187.1,0.002]
[1768878970690,0.90911162,3187.6,3187.1,0.93500705]
[1768878970872,0.90911162,3187.6,3187.1,0.002]
[1768878971259,0.90911162,3187.5,3187.1,0.002]
[1768878975180,0.90911162,3187.6,3187.1,0.93500705]
[1768878977388,0.90911162,3187.6,3187.1,4.07265348]
[1768878977596,1.42511162,3187.7,3187.2,0.93300705]
[1768878978159,0.90911162,3187.7,3187.2,0.93300705]
[1768878978364,0.90911162,3187.7,3187.2,4.0705059]
[1768878979284,0.001,3187.8,3187.3,1.65402228]
[1768878979488,0.91011162,3187.8,3187.3,1.65402228]
[1768878979687,0.001,3187.8,3187.4,0.93500705]
[1768878981786,0.001,3187.8,3187.6,0.93300705]
[1768878981990,0.001,3187.8,3187.7,1.34003325]
[1768878984298,0.001,3187.8,3187.7,0.4070262]
[1768878984505,0.92596151,3188.4,3187.7,0.4070262]
[1768878984726,0.00080272,3188.4,3187.7,6.68114232]
[1768878984872,0.00080272,3188.4,3187.8,1.18411423]
[1768878986211,0.0018024,3188.7,3188.0,0.0008028]
[1768878986598,0.0018024,3188.7,3188.1,0.90509352]
[1768878986768,0.0018024,3188.7,3188.2,0.516]
[1768878986968,0.00080176,3189.3,3188.2,0.516]
[1768878986969,0.92515879,3189.2,3188.3,0.90509352]
[1768878987170,0.00080176,3189.3,3188.7,0.90509352]
[1768878988472,0.00080176,3189.3,3188.8,0.90509352]
[1768878990603,0.00080176,3189.3,3188.9,0.90509352]
[1768878991581,0.00080176,3189.3,3189.0,1.42109352]
[1768878992806,0.00080176,3189.3,3189.1,0.90509352]
[1768878993371,0.00080176,3189.3,3189.2,0.90509352]
[1768878994518,0.00080192,3189.6,3189.2,0.90509352]
[1768878997911,0.92596071,3189.6,3189.2,0.90509352]
[1768878998141,0.92596071,3189.6,3188.9,0.51680184]
[1768878999528,0.92596071,3189.6,3188.9,1.42189536]
[1768878999737,0.92596071,3189.6,3189.0,0.90509352]
[1768879002224,0.92596071,3189.6,3188.9,0.97258635]
[1768879002622,0.92596071,3189.6,3188.9,1.88348782]
[1768879005941,0.92596071,3189.6,3189.2,0.002]
[1768879006332,0.001,3189.3,3189.2,0.002]
[1768879007230,0.9801849,3189.3,3189.2,0.002]
[1768879007436,0.9801849,3189.3,3188.9,0.00280184]
[1768879008717,0.9799873,3189.0,3188.4,0.516]
[1768879009620,0.9799873,3189.0,3188.3,0.91170395]
[1768879009818,0.9799873,3189.0,3188.3,0.00080248]
[1768879010216,0.9791849,3188.7,3188.3,0.00080248]
[1768879010433,0.97998738,3188.7,3188.0,0.0008028]
[1768879010750,0.9791849,3188.5,3188.0,0.0008028]
[1768879013027,0.9791849,3188.5,3188.0,0.99030926]
[1768879014758,0.9791849,3188.5,3188.1,3.13666447]
[1768879014962,0.00080248,3188.7,3188.2,0.98950646]
[1768879015258,0.00080248,3188.7,3188.4,0.98950646]
[1768879019762,0.00180248,3188.7,3188.4,0.98950646]
[1768879019942,0.00180248,3188.7,3188.5,0.98950646]
[1768879021088,0.0008024,3189.0,3188.5,0.98950646]
[1768879021993,0.0008024,3189.0,3188.7,0.98950646]
[1768879022794,0.00180184,3189.3,3188.7,0.98950646]
[1768879023004,0.00180184,3189.3,3188.8,0.98950646]
[1768879024477,0.00180184,3189.3,3188.9,3.13587757]
[1768879024680,0.00180184,3189.3,3189.1,0.98950646]
[1768879028577,0.00180184,3189.3,3189.0,0.4125384]
[1768879028943,0.00180184,3189.3,3189.0,1.40204486]
[1768879029982,0.99695176,3189.3,3189.0,0.4125384]
[1768879030148,0.99695176,3189.3,3188.7,4.64152248]
[1768879030344,0.99695176,3189.3,3188.8,0.516]
[1768879031965,0.99614992,3189.0,3188.6,0.00080248]
[1768879032166,0.99614992,3189.0,3188.6,0.51680248]
[1768879034593,0.99614992,3189.0,3188.6,0.00080248]
[1768879035002,0.99614992,3189.0,3188.6,0.99030894]
[1768879038992,0.99614992,3189.0,3188.6,4.12648112]
[1768879040098,0.99614992,3189.0,3188.6,0.99030894]
[1768879040297,0.99614992,3189.0,3188.6,4.12647932]
[1768879040502,0.99614992,3189.0,3188.6,0.99030894]
[1768879041617,0.99614992,3189.0,3188.6,4.12644015]
[1768879042123,0.99514992,3188.7,3188.2,0.98950646]
[1768879042287,0.99514992,3188.7,3188.4,0.98950646]
[1768879042288,0.00080256,3188.7,3188.4,0.98950646]
[1768879042785,0.99595248,3188.7,3188.1,1.50550646]
[1768879043406,0.99595248,3188.7,3188.2,0.95765801]
[1768879044076,0.99595248,3188.7,3188.4,0.002]
[1768879045684,1.62688869,3188.7,3188.4,0.002]
[1768879046616,0.99595248,3188.7,3188.4,0.002]
[1768879056614,0.95110691,3188.6,3188.0,0.0028028]
[1768879056848,0.95110691,3188.6,3188.0,0.5188028]
[1768879057478,3.13621152,3188.6,3188.0,0.5188028]
[1768879057682,0.95110691,3188.5,3188.0,0.5188028]
[1768879057878,0.95110691,3188.4,3188.0,0.5188028]
[1768879058123,0.95110691,3188.4,3188.0,0.0028028]
[1768879061932,3.13791695,3188.7,3188.0,0.94371996]
[1768879061933,0.99850515,3188.7,3188.0,0.94371996]
[1768879062235,0.51780256,3188.7,3188.0,0.94371996]
[1768879062836,0.00180256,3188.7,3188.0,0.94371996]
[1768879063036,0.00180256,3188.7,3188.1,0.94091716]
[1768879066104,0.00180256,3188.7,3188.1,3.13660236]
[1768879066303,0.00180256,3188.7,3188.2,0.94091716]
[1768879068098,0.00180248,3189.0,3188.5,0.94091716]
[1768879068294,0.99850443,3189.3,3188.8,0.94091716]
[1768879068729,0.99850443,3189.3,3188.6,0.94171972]
[1768879070114,0.99850443,3189.3,3188.6,0.00080256]
[1768879072027,0.99850443,3189.3,3188.7,0.94091716]
[1768879072338,0.00180184,3189.3,3188.7,0.94091716]
[1768879072542,0.00180184,3189.3,3188.9,0.94091716]
[1768879073734,0.97912562,3189.3,3188.6,3.45084281]
[1768879074048,0.97912562,3189.3,3188.7,0.99802055]
[1768879074244,0.97912562,3189.3,3188.7,1.44290689]
[1768879074448,0.97912562,3189.3,3188.8,0.99802055]
[1768879077021,0.97732378,3189.2,3188.6,0.00080256]
[1768879078955,0.97732378,3189.1,3188.6,0.00080256]
[1768879079248,0.97732378,3189.0,3188.6,0.00080256]
[1768879080243,0.97732378,3189.0,3188.9,0.002]
[1768879080550,0.97832378,3189.0,3188.6,0.00080256]
[1768879082132,0.97732378,3188.9,3188.6,0.00080256]
[1768879083366,0.97732378,3188.8,3188.6,0.00080256]
[1768879083523,0.97732378,3188.7,3188.6,0.00080256]
[1768879084241,0.97732378,3188.7,3188.3,0.00080264]
[1768879086266,0.97732378,3188.6,3188.0,0.0028028]
[1768879087223,0.516,3188.6,3188.0,0.0028028]
[1768879087582,0.97732378,3188.4,3188.0,0.0028028]